bitfinex/quotes_SOLUSD_20220227
["timestamp","ask_amount","ask_price","bid_price","bid_amount"]
[1646003055017,2.74678921,84.548,84.393,2.74678921]
[1646003055216,6.0,84.547,84.393,2.74678921]
[1646003055617,2.03967374,84.548,84.401,116.5]
[1646003055818,2.74678921,84.546,84.404,2.65561197]
[1646003056119,6.0,84.545,84.407,2.36817764]
[1646003056416,6.0,84.545,84.411,116.5]
[1646003056616,1.60459935,84.549,84.411,116.5]
[1646003056617,6.0,84.548,84.412,2.80600378]
[1646003056823,6.0,84.548,84.415,2.59137901]
[1646003057017,6.0,84.569,84.432,2.32302629]
[1646003057316,20.05,84.57,84.433,6.0]
[1646003057518,1.75610664,84.569,84.433,6.0]
[1646003057817,116.5,84.567,84.413,2.74678921]
[1646003058022,6.0,84.568,84.4,2.74678921]
[1646003058023,116.5,84.565,84.4,2.74678921]
[1646003058219,116.5,84.549,84.4,2.74678921]
[1646003058417,1.90503754,84.538,84.38,2.58495607]
[1646003058620,1.90503754,84.538,84.369,2.74678921]
[1646003058818,1.90503754,84.538,84.359,4.736]
[1646003058819,6.9766518,84.536,84.359,2.74678921]
[1646003059020,5.0,84.526,84.347,2.06685925]
[1646003059218,116.5,84.519,84.347,2.06685925]
[1646003059418,1.80995584,84.516,84.348,2.11457738]
[1646003059623,6.0,84.518,84.349,2.59491839]
[1646003059624,1.9114082,84.513,84.349,2.59491839]
[1646003059820,14.05,84.51,84.349,28.58704213]
[1646003060026,7.57747931,84.509,84.35,9.78290529]
[1646003060227,7.57747931,84.509,84.351,6.0]
[1646003060425,2.74678921,84.508,84.351,34.73891295]
[1646003060632,2.74678921,84.508,84.352,116.5]
[1646003060823,14.05,84.5,84.353,122.5]
[1646003061033,1.82513505,84.499,84.354,2.11680859]
[1646003061231,1.82513505,84.499,84.356,116.5]
[1646003061423,1.75257317,84.554,84.371,116.5]
[1646003061631,14.05,84.55,84.373,116.5]
[1646003061824,14.05,84.54,84.375,116.5]
[1646003062022,14.05,84.54,84.374,8.2557154]
[1646003062023,7.88269334,84.539,84.391,116.5]
[1646003062223,7.88269334,84.539,84.393,116.5]
[1646003062427,1.88269334,84.539,84.395,116.5]
[1646003062623,1.88269334,84.539,84.396,8.22360915]
[1646003062823,1.88269334,84.539,84.394,6.0]
[1646003063025,1.88269334,84.539,84.397,6.0]
[1646003063326,1.96074734,84.538,84.394,6.0]
[1646003063524,4.735,84.537,84.382,6.0]
[1646003063724,1.96074734,84.538,84.382,2.38848563]
[1646003064029,1.96074734,84.538,84.381,122.5]
[1646003064030,1.96074734,84.538,84.397,2.481207]
[1646003064225,1.96074734,84.538,84.398,6.0]
[1646003064827,4.735,84.537,84.387,6.0]
[1646003065025,1.96074734,84.538,84.385,116.5]
[1646003065225,1.96074734,84.538,84.387,116.5]
[1646003065428,1.96074734,84.538,84.388,6.0]
[1646003065828,1.96074734,84.538,84.391,116.5]
[1646003066124,6.0,84.537,84.394,2.10900094]
[1646003066326,6.0,84.537,84.396,116.5]
[1646003066525,6.0,84.537,84.41,14.05]
[1646003066725,1.96074734,84.538,84.411,122.5]
[1646003066925,1.96074734,84.538,84.411,6.0]
[1646003067726,1.96074734,84.538,84.37,22.5019]
[1646003067727,1.96074734,84.538,84.39,14.05]
[1646003067927,116.5,84.536,84.361,116.5]
[1646003068127,116.5,84.534,84.365,2.74678921]
[1646003068331,14.05,84.52,84.365,2.74678921]
[1646003068527,7.79617319,84.519,84.365,2.74678921]
[1646003069127,7.79617319,84.519,84.366,6.0]
[1646003069328,7.79617319,84.519,84.37,14.05]
[1646003069529,7.79617319,84.519,84.371,6.0]
[1646003069732,116.5,84.518,84.365,2.74678921]
[1646003069932,120.76,84.516,84.355,2.74678921]
[1646003070134,4.26,84.496,84.355,2.74678921]
[1646003070333,4.26,84.486,84.332,25.99212374]
[1646003070533,4.26,84.476,84.32,2.74678921]
[1646003070838,1.78248359,84.469,84.31,16.79678921]
[1646003071033,1.78248359,84.469,84.307,26.4768929]
[1646003071034,6.0,84.468,84.328,2.74678921]
[1646003071435,6.0,84.468,84.329,6.0]
[1646003071634,6.0,84.468,84.329,29.91836435]
[1646003071933,8.05258878,84.468,84.33,2.74678921]
[1646003072134,8.05258878,84.468,84.331,8.27362697]
[1646003072335,6.0,84.468,84.332,116.5]
[1646003072534,7.67731791,84.479,84.333,122.5]
[1646003072734,1.56158992,84.469,84.333,122.5]
[1646003072934,6.0,84.468,84.335,116.5]
[1646003073134,6.0,84.468,84.336,6.0]
[1646003073534,6.0,84.468,84.337,23.91836435]
[1646003073735,1.56158992,84.469,84.34,14.05]
[1646003073935,1.95338716,84.489,84.341,8.74827916]
[1646003074136,6.0,84.488,84.341,32.66664351]
[1646003074337,6.0,84.488,84.342,133.34870791]
[1646003074535,6.0,84.488,84.344,116.5]
[1646003074735,6.0,84.488,84.346,116.5]
[1646003074935,2.07888745,84.509,84.345,8.35701811]
[1646003074936,6.0,84.508,84.361,116.5]
[1646003075139,6.0,84.508,84.371,116.5]
[1646003075338,6.0,84.508,84.373,116.5]
[1646003075537,6.0,84.508,84.374,6.0]
[1646003075738,4.737,84.507,84.372,6.0]
[1646003075940,116.5,84.503,84.372,6.0]
[1646003076136,116.5,84.487,84.338,2.74678921]
[1646003076336,116.5,84.479,84.338,2.74678921]
[1646003076538,14.05,84.47,84.338,2.74678921]
[1646003076737,7.81371905,84.469,84.338,2.74678921]
[1646003077337,7.81371905,84.469,84.34,14.05]
[1646003077537,7.81371905,84.469,84.341,122.5]
[1646003077736,6.0,84.469,84.342,2.24817243]
[1646003077937,6.0,84.488,84.344,116.5]
[1646003078139,116.5,84.487,84.346,116.5]
[1646003078340,1.91172029,84.486,84.348,116.5]
[1646003078541,1.91172029,84.486,84.361,116.5]
[1646003078739,14.05,84.5,84.35,14.05]
[1646003078740,1.61850825,84.499,84.362,124.84352021]
[1646003079040,1.61850825,84.499,84.371,116.5]
[1646003079239,1.72989981,84.534,84.372,122.5]
[1646003079440,1.72989981,84.534,84.372,147.74418706]
[1646003079639,2.06027867,84.519,84.381,116.5]
[1646003079838,14.05,84.53,84.382,6.0]
[1646003080041,1.64386329,84.519,84.382,8.74678921]
[1646003080239,1.67166538,84.528,84.383,2.72201741]
[1646003080440,1.67166538,84.528,84.384,8.3685953]
[1646003080641,2.1059506,84.549,84.39,14.05]
[1646003080841,1.66251344,84.558,84.393,2.21460959]
[1646003081045,1.98879034,84.569,84.396,2.17804104]
[1646003081241,118.48879034,84.569,84.411,116.5]
[1646003081440,1.85672614,84.568,84.413,116.5]
[1646003081643,1.85672614,84.568,84.412,8.78051696]
[1646003081644,1.85672614,84.568,84.416,2.60199559]
[1646003081943,1.85672614,84.568,84.431,116.5]
[1646003082143,1.85672614,84.568,84.43,14.05]
[1646003082144,1.85672614,84.568,84.433,116.5]
[1646003082341,1.85672614,84.568,84.43,14.05]
[1646003082342,1.85672614,84.568,84.435,116.5]
[1646003082543,1.85672614,84.568,84.441,116.5]
[1646003082745,118.23234885,84.573,84.44,14.05]
[1646003082944,116.5,84.571,84.44,14.05]
[1646003083146,1.8498494,84.568,84.44,14.05]
[1646003083344,6.0,84.567,84.44,14.05]
[1646003083746,120.76,84.566,84.42,14.05]
[1646003083945,1.65173708,84.563,84.4,14.05]
[1646003084144,116.5,84.549,84.401,6.0]
[1646003084349,2.13549155,84.546,84.4,14.05]
[1646003084750,1.73664017,84.543,84.4,14.05]
[1646003084949,116.5,84.529,84.401,6.0]
[1646003085150,2.13991526,84.528,84.401,6.0]
[1646003085350,4.26,84.526,84.376,2.74678921]
[1646003085549,116.5,84.525,84.36,14.05]
[1646003085748,116.5,84.523,84.35,14.05]
[1646003085949,116.5,84.509,84.351,116.5]
[1646003086152,1.9021448,84.506,84.351,114.0]
[1646003086351,122.5,84.505,84.351,116.74678921]
[1646003086550,116.5,84.499,84.351,2.74678921]
[1646003086752,116.5,84.499,84.32,10.9791]
[1646003086753,4.26,84.486,84.33,14.05]
[1646003086950,116.5,84.479,84.324,2.74678921]
[1646003087151,116.5,84.477,84.324,2.74678921]
[1646003087366,1.73673807,84.474,84.324,2.74678921]
[1646003087566,1.74108374,84.459,84.324,2.74678921]
[1646003087766,116.5,84.457,84.324,2.74678921]
[1646003087965,6.0,84.456,84.325,6.0]
[1646003088370,6.0,84.458,84.326,119.24678921]
[1646003088567,27.5162615,84.478,84.326,119.24678921]
[1646003088568,1.84339118,84.485,84.328,116.5]
[1646003088769,6.0,84.484,84.34,14.05]
[1646003088969,6.0,84.484,84.341,122.5]
[1646003089268,6.0,84.484,84.341,6.0]
[1646003089468,7.76417091,84.489,84.341,2.74678921]
[1646003089669,7.76417091,84.489,84.343,116.5]
[1646003089868,7.76417091,84.489,84.344,6.0]
[1646003090069,7.76417091,84.489,84.345,116.5]
[1646003090270,7.76417091,84.489,84.347,116.5]
[1646003090470,7.76417091,84.489,84.351,116.5]
[1646003090672,7.76417091,84.489,84.353,116.5]
[1646003090872,6.0,84.489,84.356,2.35579165]
[1646003091069,1.60312773,84.506,84.361,116.5]
[1646003091070,6.0,84.505,84.361,116.5]
[1646003091274,6.0,84.505,84.363,116.5]
[1646003091473,6.0,84.505,84.365,116.5]
[1646003091674,6.0,84.505,84.367,116.5]
[1646003091876,6.0,84.505,84.369,116.5]
[1646003092072,122.5,84.505,84.37,20.05]
[1646003092272,122.5,84.505,84.368,6.0]
[1646003092273,14.05,84.49,84.368,6.0]
[1646003092473,7.62591656,84.489,84.368,6.0]
[1646003092673,1.62591656,84.489,84.351,8.5642764]
[1646003092872,1.62591656,84.489,84.36,14.05]
[1646003093072,118.12591656,84.489,84.362,116.5]
[1646003093274,116.5,84.489,84.364,116.5]
[1646003093475,1.65340867,84.488,84.366,116.5]
[1646003093675,2.09094009,84.509,84.381,116.5]
[1646003093876,1.60448639,84.538,84.369,2.27117494]
[1646003093877,1.99326518,84.538,84.391,116.5]
[1646003094074,2.74678921,84.525,84.393,116.5]
[1646003094275,2.74678921,84.525,84.394,2.43247989]
[1646003094575,1.80037581,84.55,84.397,2.72011393]
[1646003094774,1.80037581,84.55,84.411,116.5]
[1646003095074,1.80037581,84.55,84.41,14.05]
[1646003095075,2.00096651,84.549,84.412,6.0]
[1646003095376,2.00096651,84.549,84.411,6.0]
[1646003095574,6.0,84.548,84.411,6.0]
[1646003095774,116.5,84.547,84.411,6.0]
[1646003095975,1.60448639,84.543,84.411,6.0]
[1646003096174,6.0,84.542,84.401,116.5]
[1646003096476,6.0,84.542,84.402,122.5]
[1646003096875,6.0,84.543,84.402,125.24678921]
[1646003097075,2.74678921,84.565,84.402,125.24678921]
[1646003097076,6.0,84.553,84.403,5.51865788]
[1646003097276,1.60448639,84.559,84.403,5.51865788]
[1646003097476,6.0,84.558,84.405,116.5]
[1646003097676,6.0,84.558,84.42,14.05]
[1646003098078,116.5,84.557,84.421,6.0]
[1646003098279,116.5,84.555,84.421,6.0]
[1646003098477,1.76385421,84.552,84.421,6.0]
[1646003098677,1.76385421,84.552,84.42,14.05]
[1646003098678,130.55,84.55,84.42,14.05]
[1646003098879,116.5,84.548,84.406,2.74678921]
[1646003099081,116.5,84.546,84.407,6.0]
[1646003099280,116.5,84.544,84.407,6.0]
[1646003099479,14.05,84.54,84.407,6.0]
[1646003099678,7.55755918,84.539,84.407,6.0]
[1646003100080,119.24678921,84.538,84.407,6.0]
[1646003100280,6.0,84.537,84.407,6.0]
[1646003100482,6.0,84.537,84.401,6.0]
[1646003100881,6.0,84.537,84.402,33.0221308]
[1646003101281,6.0,84.537,84.403,6.0]
[1646003101587,6.0,84.537,84.403,125.24678921]
[1646003101981,6.0,84.537,84.404,33.02219161]
[1646003102186,2.74678921,84.536,84.405,6.0]
[1646003102384,1.69547615,84.533,84.375,18.3744]
[1646003102684,1.75394342,84.518,84.383,2.74678921]
[1646003102986,6.0,84.517,84.384,6.0]
[1646003103183,6.0,84.517,84.384,39.02535552]
[1646003103384,1.69506625,84.515,84.384,39.02535552]
[1646003103586,1.69506625,84.515,84.385,33.02535552]
[1646003103587,6.0,84.514,84.385,33.02535552]
[1646003103784,1.69506625,84.515,84.4,14.05]
[1646003103982,1.60448639,84.543,84.401,122.5]
[1646003104186,6.0,84.542,84.401,122.5]
[1646003104384,116.5,84.542,84.401,122.5]
[1646003104582,1.76984592,84.539,84.401,122.5]
[1646003104781,116.5,84.537,84.402,33.02262925]
[1646003104981,116.5,84.535,84.403,6.0]
[1646003105182,1.72610028,84.532,84.403,6.0]
[1646003105383,1.86334166,84.529,84.403,6.0]
[1646003105684,118.19627912,84.525,84.386,2.74678921]
[1646003105882,3.09,84.516,84.371,116.5]
[1646003106082,3.09,84.516,84.37,14.55703748]
[1646003106083,14.05,84.51,84.372,122.5]
[1646003106281,1.88395098,84.508,84.372,6.0]
[1646003106483,2.08667768,84.505,84.373,33.03210267]
[1646003106682,1.54368707,84.498,84.374,6.0]
[1646003106885,2.10592727,84.495,84.374,6.0]
[1646003107283,1.83691236,84.492,84.374,6.0]
[1646003107482,116.5,84.479,84.359,6.0]
[1646003107685,2.02266165,84.478,84.349,6.0]
[1646003107882,116.5,84.476,84.349,6.0]
[1646003108083,116.5,84.474,84.35,152.28622258]
[1646003108285,6.0,84.473,84.352,116.5]
[1646003108484,6.0,84.473,84.354,116.5]
[1646003108885,6.0,84.481,84.356,116.5]
[1646003109086,6.0,84.481,84.358,116.5]
[1646003109286,1.56951791,84.486,84.36,116.5]
[1646003109495,6.0,84.485,84.362,116.5]
[1646003109686,14.05,84.53,84.364,116.5]
[1646003109885,14.05,84.52,84.366,116.5]
[1646003110085,7.75041559,84.519,84.381,116.5]
[1646003110287,1.96027584,84.517,84.383,116.5]
[1646003110488,116.5,84.515,84.385,116.5]
[1646003110685,116.5,84.511,84.387,116.5]
[1646003110885,1.81852122,84.508,84.387,116.5]
[1646003111086,116.5,84.506,84.387,116.5]
[1646003111287,116.5,84.504,84.387,116.5]
[1646003111490,1.75280794,84.501,84.387,116.5]
[1646003111687,116.5,84.499,84.389,116.5]
[1646003111886,6.0,84.498,84.391,116.5]
[1646003112089,6.0,84.498,84.393,116.5]
[1646003112287,6.0,84.498,84.393,119.08511518]
[1646003112488,6.0,84.529,84.394,2.74678921]
[1646003112690,6.0,84.541,84.395,122.5]
[1646003112888,116.5,84.545,84.395,137.05703748]
[1646003113190,1.93331775,84.542,84.397,116.5]
[1646003113389,6.0,84.541,84.411,116.5]
[1646003113588,116.5,84.54,84.413,116.5]
[1646003113788,116.5,84.538,84.415,116.5]
[1646003113989,8.13781545,84.537,84.417,116.5]
[1646003114188,116.5,84.536,84.416,6.0]
[1646003114395,1.85411218,84.533,84.406,6.0]
[1646003114597,1.72958618,84.528,84.384,6.0]
[1646003114789,6.0,84.527,84.407,33.02377529]
[1646003114989,6.0,84.527,84.408,6.0]
[1646003115191,6.0,84.527,84.409,116.5]
[1646003115387,6.0,84.534,84.411,116.5]
[1646003115588,6.0,84.534,84.413,116.5]
[1646003115788,6.0,84.534,84.415,116.5]
[1646003115989,6.0,84.534,84.417,116.5]
[1646003116189,6.0,84.534,84.419,116.5]
[1646003116489,6.0,84.535,84.421,116.5]
[1646003116691,2.74678921,84.536,84.423,116.5]
[1646003116890,2.74678921,84.536,84.425,116.5]
[1646003117192,2.74678921,84.536,84.422,2.74678921]
[1646003117589,3.19804022,84.548,84.422,2.74678921]
[1646003117788,1.60448639,84.549,84.423,6.0]
[1646003117990,1.60448639,84.549,84.423,39.01843817]
[1646003118190,1.60448639,84.551,84.424,116.5]
[1646003118490,1.60448639,84.548,84.426,116.5]
[1646003118791,1.60448639,84.548,84.428,116.5]
[1646003118990,118.10448639,84.546,84.422,2.74678921]
[1646003119191,118.10448639,84.546,68.996,28.0]
[1646003119192,1.60448639,84.539,84.407,2.74678921]
[1646003119390,1.60448639,84.528,84.405,116.5]
[1646003119591,116.5,84.519,84.408,33.03342647]
[1646003119795,116.5,84.517,84.408,33.03342647]
[1646003119990,1.77890301,84.514,84.406,33.03342647]
[1646003120190,116.5,84.512,84.406,33.03342647]
[1646003120390,7.75506414,84.511,84.407,6.0]
[1646003120593,7.75506414,84.511,84.396,116.5]
[1646003120794,7.75506414,84.511,84.398,116.5]
[1646003120993,6.0,84.511,84.398,116.5]
[1646003121192,6.0,84.524,84.398,116.5]
[1646003121494,6.0,84.524,84.367,4.736]
[1646003121495,1.60448639,84.518,84.399,35.77971466]
[1646003121693,14.05,84.52,84.376,14.55703748]
[1646003121694,1.60448639,84.509,84.376,14.55703748]
[1646003121896,116.5,84.499,84.361,24.9611377]
[1646003122093,7.74263034,84.498,84.377,33.04081113]
[1646003122497,116.5,84.497,84.378,6.0]
[1646003122695,6.0,84.496,84.379,116.5]
[1646003122896,6.0,84.496,84.381,116.5]
[1646003123297,116.5,84.496,84.382,33.04081113]
[1646003123498,116.5,84.494,84.382,33.04081113]
[1646003123699,116.5,84.479,84.369,33.04081113]
[1646003123899,14.05,84.48,84.369,33.04081113]
[1646003123900,5.0,84.476,84.369,33.04081113]
[1646003124098,121.238,84.475,84.346,33.04081113]
[1646003124298,14.05,84.47,84.346,33.04081113]
[1646003124500,6.0,84.469,84.346,2.74678921]
[1646003124800,8.02540345,84.469,84.348,116.5]
[1646003124998,6.0,84.469,84.348,116.5]
[1646003125196,6.0,84.487,84.35,116.5]
[1646003125399,6.0,84.487,84.352,116.5]
[1646003125598,6.0,84.487,84.354,116.5]
[1646003125797,14.05,84.52,84.353,8.49881954]
[1646003125798,1.60448639,84.506,84.357,2.85726053]
[1646003125997,1.60448639,84.531,84.371,116.5]
[1646003126197,1.95472675,84.533,84.373,116.5]
[1646003126397,118.45472675,84.533,84.375,116.5]
[1646003126599,1.60448639,84.528,84.391,116.5]
[1646003126798,1.60448639,84.528,84.393,119.23258685]
[1646003126998,1.99518367,84.532,84.395,116.5]
[1646003127200,1.99518367,84.532,84.394,6.0]
[1646003127201,6.0,84.531,84.397,116.5]
[1646003127402,1.92737583,84.529,84.411,116.5]
[1646003127599,1.92737583,84.529,84.413,116.5]
[1646003127801,1.92737583,84.529,84.414,6.0]
[1646003127999,1.92737583,84.529,84.41,14.05]
[1646003128202,1.92737583,84.529,84.398,15.74860015]
[1646003128401,1.60448639,84.534,84.411,33.03032715]
[1646003128600,58.61,84.557,84.411,33.03032715]
[1646003128601,1.60448639,84.543,84.411,33.03032715]
[1646003128801,1.60448639,84.537,84.412,6.0]
[1646003129001,6.0,84.536,84.413,116.5]
[1646003129202,6.0,84.536,84.415,116.5]
[1646003129601,7.68255462,84.541,84.417,116.5]
[1646003130005,7.68255462,84.541,84.421,116.5]
[1646003130006,6.0,84.541,84.421,116.5]
[1646003130203,6.0,84.541,84.42,14.05]
[1646003130204,1.60448639,84.556,84.423,116.5]
[1646003130403,2.06053617,84.571,84.425,116.5]
[1646003130604,1.60448639,84.573,84.429,116.5]
[1646003130806,1.60448639,84.573,84.426,6.0]
[1646003130807,1.60448639,84.591,84.441,116.5]
[1646003131004,1.60448639,84.58,84.443,116.5]
[1646003131204,1.60448639,84.581,84.445,116.5]
[1646003131407,116.5,84.579,84.447,116.5]
[1646003131607,6.60255633,84.609,84.461,116.5]
[1646003131608,116.5,84.577,84.461,116.5]
[1646003131808,14.05,84.6,84.463,116.5]
[1646003131809,7.9306805,84.576,84.463,116.5]
[1646003132003,7.9306805,84.576,84.462,6.0]
[1646003132004,6.0,84.576,84.465,116.5]
[1646003132508,6.0,84.58,84.465,116.5]
[1646003132705,1.60448639,84.582,84.466,2.74678921]
[1646003132906,1.60448639,84.587,84.471,116.5]
[1646003133112,6.0,84.586,84.473,116.5]
[1646003133306,6.0,84.588,84.475,116.5]
[1646003133505,6.0,84.594,84.475,116.5]
[1646003133705,1.60448639,84.598,84.476,2.54444565]
[1646003133905,6.0,84.597,84.48,14.05]
[1646003134304,6.0,84.597,84.481,116.5]
[1646003134505,6.0,84.599,84.481,116.5]
[1646003135008,1.60448639,84.598,84.48,14.05]
[1646003135205,1.60448639,84.596,84.48,14.05]
[1646003135406,116.5,84.594,84.48,14.05]
[1646003135605,116.5,84.592,84.48,14.05]
[1646003135806,116.5,84.59,84.48,14.05]
[1646003136025,1.63116308,84.587,84.48,14.05]
[1646003136225,1.63549631,84.584,84.48,14.05]
[1646003136426,1.92435578,84.581,84.48,14.05]
[1646003136626,6.0,84.58,84.481,116.5]
[1646003136827,6.0,84.58,84.48,14.05]
[1646003137026,6.0,84.58,84.481,116.5]
[1646003137225,6.0,84.59,84.481,116.5]
[1646003137426,6.0,84.594,84.481,116.5]
[1646003137631,2.00662034,84.592,84.481,116.5]
[1646003137826,6.0,84.591,84.481,116.5]
[1646003138431,6.0,84.594,84.481,116.5]
[1646003138628,116.5,84.593,84.48,14.05]
[1646003138831,1.60448639,84.588,84.42,2.19964185]
[1646003139027,116.5,84.581,84.43,14.05]
[1646003139228,1.80717121,84.578,84.43,14.05]
[1646003139428,1.60448639,84.573,84.431,6.0]
[1646003139629,1.73017794,84.571,84.431,6.0]
[1646003139828,116.5,84.569,84.431,6.0]
[1646003140028,116.5,84.567,84.432,2.74678921]
[1646003140230,6.0,84.568,84.432,2.74678921]
[1646003140231,1.5714074,84.564,84.433,6.0]
[1646003140428,21.39044107,84.578,84.433,6.0]
[1646003140429,6.0,84.563,84.433,6.0]
[1646003140628,6.0,84.563,84.434,2.74678921]
[1646003140828,6.0,84.563,84.435,6.0]
[1646003141028,2.09709532,84.568,84.435,6.0]
[1646003141227,116.5,84.566,84.435,6.0]
[1646003141428,2.09019821,84.563,84.435,6.0]
[1646003141631,116.5,84.561,84.436,2.74678921]
[1646003141829,116.5,84.559,84.437,6.0]
[1646003142029,2.09518295,84.556,84.437,6.0]
[1646003142230,6.0,84.555,84.437,8.74678921]
[1646003142832,6.0,84.566,84.437,8.74678921]
[1646003143431,6.0,84.566,84.437,6.0]
[1646003143631,6.0,84.566,84.431,6.0]
[1646003143831,6.0,84.568,84.44,14.05]
[1646003144031,6.0,84.568,84.441,6.0]
[1646003144434,1.92606118,84.569,84.442,2.74678921]
[1646003144633,1.78824666,84.577,84.443,6.0]
[1646003144832,6.0,84.576,84.443,6.0]
[1646003145033,6.0,84.576,84.444,2.74678921]
[1646003145233,6.0,84.576,84.445,6.0]
[1646003145734,1.78824666,84.577,84.447,2.27546666]
[1646003145933,1.60448639,84.595,84.46,14.05]
[1646003146134,13.13425376,84.599,84.46,14.05]
[1646003146135,2.74678921,84.586,84.461,6.0]
[1646003146334,6.0,84.594,84.461,6.0]
[1646003146335,6.0,84.585,84.461,10.85539933]
[1646003146533,1.98399601,84.598,84.461,10.85539933]
[1646003146736,1.98399601,84.598,84.462,2.74678921]
[1646003146933,6.0,84.597,84.463,6.0]
[1646003147335,116.5,84.596,84.464,2.74678921]
[1646003147535,5.5,84.595,84.465,6.0]
[1646003147733,6.0,84.597,84.465,6.0]
[1646003147734,6.0,84.597,84.48,14.05]
[1646003147934,6.0,84.597,84.481,6.0]
[1646003148139,1.98499585,84.609,84.481,6.0]
[1646003148535,129.63425376,84.609,84.481,6.0]
[1646003148736,2.13994903,84.608,84.482,116.5]
[1646003148937,2.13994903,84.608,84.484,116.5]
[1646003149137,116.5,84.606,84.486,116.5]
[1646003149338,116.5,84.604,84.491,116.5]
[1646003149537,1.85724734,84.603,84.493,116.5]
[1646003149739,1.57869698,84.601,84.495,116.5]
[1646003149938,6.0,84.6,84.497,116.5]
[1646003150142,6.0,84.6,84.501,116.5]
[1646003150339,6.0,84.6,84.503,116.5]
[1646003150542,6.0,84.6,84.502,6.0]
[1646003150543,116.5,84.599,84.504,6.0]
[1646003150746,1.63457981,84.596,84.483,2.74678921]
[1646003150941,116.5,84.594,84.484,6.0]
[1646003151140,1.88105318,84.593,84.484,6.0]
[1646003151340,1.93933838,84.591,84.485,6.0]
[1646003151541,1.93933838,84.591,84.471,6.0]
[1646003151739,6.0,84.592,84.472,116.5]
[1646003151939,6.0,84.597,84.474,116.5]
[1646003152140,6.0,84.597,84.475,122.5]
[1646003152341,6.0,84.597,84.475,116.5]
[1646003152546,116.5,84.596,84.477,116.5]
[1646003152742,116.5,84.594,84.479,116.5]
[1646003152941,116.5,84.592,84.48,6.0]
[1646003153141,7.72371187,84.591,84.48,6.0]
[1646003153345,7.72371187,84.591,84.481,116.5]
[1646003153542,7.72371187,84.591,84.483,116.5]
[1646003153743,6.0,84.591,84.485,116.5]
[1646003153941,116.5,84.596,84.486,6.0]
[1646003154142,2.0953316,84.593,84.486,6.0]
[1646003154342,1.66691533,84.591,84.475,116.5]
[1646003154543,1.66691533,84.591,84.428,2.08364254]
[1646003154544,1.650691,84.588,84.456,2.74678921]
[1646003154742,1.60448639,84.58,84.456,2.74678921]
[1646003154942,1.7802446,84.577,84.457,6.0]
[1646003155143,6.0,84.576,84.458,116.5]
[1646003155344,6.0,84.576,84.46,130.55]
[1646003155542,6.0,84.576,84.462,116.5]
[1646003155747,6.0,84.576,84.464,116.5]
[1646003155947,6.0,84.576,84.466,116.5]
[1646003156144,6.0,84.576,84.468,116.5]
[1646003156342,6.0,84.576,84.47,116.5]
[1646003156542,6.0,84.576,84.472,116.5]
[1646003156743,6.0,84.576,84.474,116.5]
[1646003156942,6.0,84.576,84.47,14.05]
[1646003156943,1.60448639,84.582,84.476,116.5]
[1646003157143,1.60448639,84.591,84.481,116.5]
[1646003157343,1.60448639,84.589,84.483,116.5]
[1646003157546,1.60448639,84.588,84.485,116.5]